bitfinex/quotes_SOLUSD_20241223
["timestamp","ask_amount","ask_price","bid_price","bid_amount"]
[1734922483221,0.6994648,179.38,179.33,23.776884]
[1734922484525,0.6994648,179.38,179.28,3.03446597]
[1734922484526,0.6994648,179.38,179.3,43.7934901]
[1734922484712,43.7934901,179.37,179.29,43.7934901]
[1734922484922,0.6994648,179.38,179.31,43.7934901]
[1734922485311,0.6994648,179.38,179.29,0.83631155]
[1734922485312,0.6994648,179.38,179.34,0.12549]
[1734922485513,0.6994648,179.38,179.36,43.7934901]
[1734922485931,0.6994648,179.38,179.35,49.9488901]
[1734922486123,0.6994648,179.38,179.35,6.1554]
[1734922486937,0.6994648,179.38,179.33,23.776884]
[1734922487435,43.7934901,179.37,179.31,6.194]
[1734922487636,43.7934901,179.35,179.28,43.7934901]
[1734922487817,43.7934901,179.37,179.28,43.7934901]
[1734922489236,43.7934901,179.37,179.29,23.776884]
[1734922489925,43.7934901,179.35,179.26,49.9874901]
[1734922490265,26.91722019,179.32,179.26,6.194]
[1734922490541,26.91722019,179.28,179.22,34.89432019]
[1734922491044,26.91722019,179.28,179.22,6.3971]
[1734922491354,23.902374,179.36,179.2,26.91722019]
[1734922491522,26.91722019,179.27,179.2,26.91722019]
[1734922492034,26.91722019,179.27,179.18,33.35422019]
[1734922492344,23.776884,179.36,179.18,50.20563701]
[1734922492345,43.76863701,179.26,179.18,50.20563701]
[1734922493131,43.76863701,179.24,179.18,6.437]
[1734922493747,43.76863701,179.22,179.14,50.36483701]
[1734922494149,43.76863701,179.24,179.17,0.12549]
[1734922494326,43.76863701,179.26,179.18,43.76863701]
[1734922494526,43.76863701,179.26,179.19,0.12549]
[1734922494726,6.2563,179.33,179.2,43.76863701]
[1734922494727,43.76863701,179.28,179.2,43.76863701]
[1734922494927,43.76863701,179.28,179.21,0.12549]
[1734922495231,43.76863701,179.3,179.23,23.776884]
[1734922495627,43.76863701,179.32,179.24,50.18443701]
[1734922495831,43.76863701,179.32,179.25,23.776884]
[1734922500228,43.76863701,179.32,179.24,50.18443701]
[1734922500433,43.76863701,179.32,179.24,6.4158]
[1734922500635,43.76863701,179.3,179.24,6.4158]
[1734922502853,43.76863701,179.32,179.25,23.902374]
[1734922503163,43.76863701,179.36,179.29,23.776884]
[1734922504159,44.46810181,179.38,179.3,43.89412701]
[1734922504350,0.6994648,179.38,179.32,43.76863701]
[1734922504539,0.6994648,179.38,179.34,6.498]
[1734922504854,0.6994648,179.38,179.34,50.26663701]
[1734922505280,0.6994648,179.38,179.35,23.776884]
[1734922506267,43.76863701,179.44,179.37,23.776884]
[1734922506558,51.84763701,179.55,179.39,23.776884]
[1734922506559,43.76863701,179.46,179.39,23.776884]
[1734922506759,51.84763701,179.55,179.41,67.54552101]
[1734922506760,43.76863701,179.49,179.41,67.54552101]
[1734922508044,43.76863701,179.44,179.37,23.776884]
[1734922508351,43.76863701,179.43,179.37,23.776884]
[1734922508553,43.76863701,179.42,179.34,50.26663701]
[1734922508751,43.76863701,179.4,179.34,6.498]
[1734922510161,43.76863701,179.39,179.31,45.29103701]
[1734922510364,43.76863701,179.38,179.31,1.5224]
[1734922510550,43.76863701,179.39,179.31,45.29103701]
[1734922511236,43.76863701,179.41,179.33,43.76863701]
[1734922512664,43.76863701,179.43,179.37,43.76863701]
[1734922512861,43.76863701,179.46,179.39,43.76863701]
[1734922513044,43.76863701,179.49,179.41,43.76863701]
[1734922513441,43.76863701,179.49,179.42,43.76863701]
[1734922514069,43.76863701,179.51,179.44,0.12549]
[1734922514248,43.76863701,179.53,179.45,43.76863701]
[1734922514562,43.76863701,179.53,179.45,43.89412701]
[1734922514772,43.76863701,179.53,179.46,43.76863701]
[1734922514942,43.76863701,179.53,179.47,23.776884]
[1734922515137,43.76863701,179.52,179.43,1.5853]
[1734922515343,43.76863701,179.52,179.45,23.776884]
[1734922515559,43.76863701,179.5,179.43,45.35393701]
[1734922516168,43.76863701,179.48,179.41,43.76863701]
[1734922516358,43.76863701,179.48,179.4,49.89223701]
[1734922517447,43.76863701,179.5,179.43,23.776884]
[1734922517665,43.76863701,179.5,179.44,43.76863701]
[1734922518042,43.76863701,179.52,179.45,23.902374]
[1734922518354,43.76863701,179.52,179.45,23.776884]
[1734922519755,43.76863701,179.52,179.44,43.76863701]
[1734922519957,43.76863701,179.5,179.42,43.76863701]
[1734922520369,43.76863701,179.5,179.43,23.776884]
[1734922521047,43.76863701,179.5,179.42,43.76863701]
[1734922521248,43.76863701,179.46,179.4,6.1236]
[1734922522164,43.76863701,179.44,179.36,6.6528]
[1734922522360,43.76863701,179.42,179.36,6.6528]
[1734922523463,43.76863701,179.44,179.36,50.42143701]
[1734922523857,43.76863701,179.46,179.38,43.76863701]
[1734922524173,43.76863701,179.44,179.36,50.42143701]
[1734922524377,43.76863701,179.42,179.36,6.6528]
[1734922524880,43.76863701,179.44,179.36,50.42143701]
[1734922526849,43.76863701,179.46,179.38,43.76863701]
[1734922527054,43.76863701,179.42,179.36,6.6528]
[1734922527360,43.76863701,179.4,179.33,1.5566]
[1734922527666,43.76863701,179.38,179.33,1.5566]
[1734922528160,43.76863701,179.38,179.32,6.5927]
[1734922528353,43.76863701,179.4,179.32,50.36133701]
[1734922529263,43.76863701,179.4,179.33,23.776884]
[1734922529465,6.2082,179.53,179.33,23.776884]
[1734922529466,43.76863701,179.42,179.34,43.76863701]
[1734922529675,43.76863701,179.44,179.37,23.776884]
[1734922530700,43.76863701,179.44,179.36,43.76863701]
[1734922535484,43.76863701,179.44,179.37,23.902374]
[1734922535689,43.76863701,179.46,179.39,23.776884]
[1734922536187,6.2082,179.53,179.42,23.776884]
[1734922536370,43.76863701,179.5,179.42,67.54552101]
[1734922536686,43.76863701,179.5,179.43,0.12549]
[1734922537183,0.6994648,179.56,179.44,43.76863701]
[1734922537484,43.76863701,179.52,179.45,23.902374]
[1734922539192,43.76863701,179.52,179.44,43.76863701]
[1734922539394,43.76863701,179.5,179.42,43.76863701]
[1734922539904,43.76863701,179.55,179.41,6.3857]
[1734922539905,43.76863701,179.48,179.41,6.3857]
[1734922541188,43.76863701,179.48,179.42,23.902374]
[1734922541397,43.76863701,179.5,179.42,67.67101101]
[1734922542812,0.6994648,179.56,179.42,67.67101101]
[1734922542994,44.46810181,179.56,179.48,43.76863701]
[1734922543394,44.46810181,179.56,179.49,43.76863701]
[1734922543693,0.6994648,179.56,179.49,43.76863701]
[1734922544281,0.6994648,179.56,179.5,49.92743701]
[1734922544770,0.6994648,179.56,179.51,0.12549]
[1734922544976,0.6994648,179.56,179.54,43.76863701]
[1734922545170,0.6994648,179.56,179.55,67.67101101]
[1734922545911,43.76863701,179.63,179.55,67.67101101]
[1734922546199,43.76863701,179.63,179.55,43.76863701]
[1734922546380,43.76863701,179.63,179.56,43.76863701]
[1734922546698,43.76863701,179.64,179.56,43.76863701]
[1734922547004,6.3831,179.7,179.56,43.76863701]
[1734922547005,43.76863701,179.63,179.56,43.76863701]
[1734922547506,43.76863701,179.64,179.56,43.76863701]
[1734922547673,43.76863701,179.64,179.57,67.54552101]
[1734922547996,43.76863701,179.64,179.57,23.776884]
[1734922548303,43.76863701,179.64,179.57,69.09772101]
[1734922549078,43.76863701,179.67,179.6,43.76863701]
[1734922550000,43.76863701,179.68,179.61,23.902374]
[1734922550978,0.6994648,179.74,179.61,23.902374]
[1734922550979,0.6994648,179.74,179.62,43.76863701]
[1734922551207,43.76863701,179.71,179.63,23.776884]
[1734922551577,43.76863701,179.7,179.63,67.54552101]
[1734922551980,43.76863701,179.68,179.61,43.76863701]
[1734922552179,43.76863701,179.68,179.62,23.776884]
[1734922552389,43.76863701,179.7,179.62,23.776884]
[1734922552582,43.76863701,179.7,179.65,0.12549]
[1734922552797,43.76863701,179.7,179.64,23.776884]
[1734922552798,43.76863701,179.72,179.64,23.776884]
[1734922553000,43.76863701,179.72,179.65,43.89412701]
[1734922553178,44.46810181,179.74,179.65,43.89412701]
[1734922553379,44.46810181,179.74,179.66,1.5578]
[1734922554280,44.46810181,179.74,179.6,3.09922571]
[1734922554281,43.76863701,179.72,179.6,3.09922571]
[1734922554497,43.76863701,179.68,179.61,45.33103701]
[1734922554898,43.76863701,179.68,179.59,50.11883701]
[1734922555276,43.76863701,179.66,179.59,50.11883701]
[1734922555483,43.76863701,179.64,179.57,45.33103701]
[1734922556410,43.76863701,179.66,179.57,45.33103701]
[1734922557201,43.76863701,179.66,179.59,43.76863701]
[1734922557586,43.76863701,179.66,179.57,45.33103701]
[1734922557815,43.76863701,179.64,179.57,45.33103701]
[1734922558802,43.76863701,179.66,179.57,45.33103701]
[1734922559003,43.76863701,179.68,179.61,43.76863701]
[1734922559807,0.6994648,179.74,179.61,43.76863701]
[1734922559808,43.76863701,179.7,179.61,43.76863701]
[1734922559987,43.76863701,179.72,179.63,43.76863701]
[1734922560507,43.76863701,179.72,179.65,43.76863701]
[1734922561491,0.6994648,179.74,179.67,45.43013701]
[1734922561693,0.6994648,179.74,179.69,43.76863701]
[1734922561917,0.6994648,179.74,179.67,45.43013701]
[1734922562411,0.6994648,179.74,179.67,1.6615]
[1734922562913,0.6994648,179.74,179.67,45.43013701]
[1734922563118,0.6994648,179.74,179.69,43.76863701]
[1734922563928,0.6994648,179.74,179.71,43.76863701]
[1734922565199,0.6994648,179.74,179.7,23.776884]
[1734922565200,0.6994648,179.74,179.73,50.38142701]
[1734922566721,43.76863701,179.83,179.74,23.902374]
[1734922566907,43.76863701,179.83,179.76,43.76863701]
[1734922567505,43.76863701,179.81,179.74,43.76863701]
[1734922568420,43.76863701,179.81,179.73,6.4873]
[1734922568621,43.76863701,179.79,179.73,6.4873]
[1734922569126,43.76863701,179.81,179.73,6.4873]
[1734922570022,43.76863701,179.83,179.74,43.76863701]
[1734922570896,43.76863701,179.81,179.74,43.76863701]
[1734922571627,43.76863701,179.81,179.67,15.5756]
[1734922571628,63.76863701,179.76,179.65,6.4397]
[1734922571824,43.76863701,179.73,179.65,6.4397]
[1734922572007,43.76863701,179.77,179.68,43.76863701]
[1734922572213,43.76863701,179.75,179.66,43.89412701]
[1734922572406,43.76863701,179.75,179.66,43.76863701]
[1734922572724,43.76863701,179.73,179.66,43.76863701]
[1734922573736,43.76863701,179.75,179.66,43.76863701]
[1734922574220,43.76863701,179.73,179.66,43.76863701]
[1734922574927,43.76863701,179.71,179.65,6.4397]
[1734922575110,43.76863701,179.71,179.64,43.76863701]
[1734922575322,43.76863701,179.71,179.62,45.38293701]
[1734922575508,0.12549,179.81,179.62,45.38293701]
[1734922575509,43.76863701,179.69,179.62,45.38293701]
[1734922575711,0.12549,179.81,179.61,6.152]
[1734922575712,43.76863701,179.67,179.61,6.152]
[1734922576325,43.76863701,179.69,179.62,43.76863701]
[1734922577411,43.76863701,179.67,179.61,6.152]
[1734922577618,43.76863701,179.67,179.58,43.76863701]
[1734922579001,43.76863701,179.67,179.6,43.76863701]
[1734922580223,43.76863701,179.69,179.6,43.76863701]
[1734922580402,43.76863701,179.69,179.58,0.12549]
[1734922580403,43.76863701,179.7,179.63,43.76863701]
[1734922581510,43.76863701,179.7,179.61,43.76863701]
[1734922581725,43.76863701,179.68,179.61,43.76863701]
[1734922582629,43.76863701,179.68,179.6,43.76863701]
[1734922583030,43.76863701,179.68,179.61,43.76863701]
[1734922583330,43.76863701,179.73,179.65,43.76863701]
[1734922583531,43.76863701,179.74,179.67,43.76863701]
[1734922583709,6.3816,179.8,179.67,43.76863701]
[1734922583710,43.76863701,179.75,179.67,43.76863701]
[1734922583910,43.76863701,179.74,179.67,43.76863701]
[1734922584111,43.76863701,179.73,179.66,43.76863701]
[1734922584921,43.76863701,179.73,179.64,43.76863701]
[1734922585925,43.76863701,179.71,179.62,43.76863701]
[1734922586124,43.76863701,179.71,179.63,0.12549]
[1734922586422,43.76863701,179.71,179.62,43.76863701]
[1734922587121,43.76863701,179.71,179.64,43.76863701]
[1734922587322,43.76863701,179.73,179.64,43.76863701]
[1734922588842,43.76863701,179.71,179.62,43.76863701]
[1734922589335,43.76863701,179.71,179.64,43.76863701]
[1734922590352,43.76863701,179.71,179.62,43.76863701]
[1734922590646,43.76863701,179.69,179.6,43.76863701]
[1734922591224,43.76863701,179.67,179.6,43.76863701]
[1734922591635,43.76863701,179.69,179.6,43.76863701]
[1734922592217,43.76863701,179.69,179.62,43.76863701]
[1734922592417,43.76863701,179.69,179.63,0.12549]
[1734922592619,43.76863701,179.69,179.62,43.76863701]
[1734922596233,26.80713216,179.69,179.61,26.80713216]
[1734922596924,26.80713216,179.71,179.61,26.80713216]
[1734922597532,26.80713216,179.71,179.63,26.80713216]
[1734922600668,26.80713216,179.71,179.62,0.12549]
[1734922600829,26.80713216,179.71,179.63,26.80713216]
[1734922601269,20.0,179.76,179.63,26.80713216]
[1734922601469,26.80713216,179.73,179.65,26.80713216]
[1734922601775,26.80713216,179.75,179.68,26.80713216]
[1734922601952,26.80713216,179.76,179.69,26.80713216]
[1734922602129,26.80713216,179.77,179.69,26.80713216]
[1734922602967,26.80713216,179.78,179.7,26.80713216]
[1734922603256,18.17638581,179.92,179.74,26.80713216]
[1734922603257,6.2579,179.85,179.74,26.80713216]
[1734922603455,26.80713216,179.82,179.75,26.80713216]
[1734922603632,1.6529,179.86,179.79,26.80713216]
[1734922603633,26.80713216,179.86,179.79,26.80713216]
[1734922604267,26.80713216,179.87,179.8,26.80713216]
[1734922604431,26.80713216,179.88,179.81,26.93262216]
[1734922604633,26.80713216,179.9,179.83,26.80713216]
[1734922605932,26.80713216,179.91,179.84,26.80713216]
[1734922606136,43.45394618,179.91,179.84,43.45394618]
[1734922606353,43.45394618,179.9,179.83,43.45394618]
[1734922606860,43.45394618,179.91,179.84,43.45394618]
[1734922607774,43.45394618,179.91,179.83,43.45394618]
[1734922609153,43.45394618,179.9,179.83,43.45394618]
[1734922609355,43.45394618,179.88,179.81,43.45394618]
[1734922609723,43.45394618,179.89,179.82,43.45394618]
[1734922610337,43.45394618,179.88,179.81,43.45394618]
[1734922610738,43.45394618,179.88,179.8,43.45394618]
[1734922611035,43.45394618,179.88,179.81,43.45394618]
[1734922611232,43.45394618,179.9,179.82,43.57943618]
[1734922611461,43.45394618,179.91,179.83,43.45394618]
[1734922611828,43.45394618,179.91,179.84,0.12549]
[1734922612064,43.45394618,179.91,179.85,43.45394618]
[1734922612733,43.45394618,179.89,179.81,43.45394618]
[1734922613348,43.45394618,179.86,179.78,43.45394618]
[1734922613539,43.45394618,179.84,179.77,45.06284618]
[1734922614053,6.5753,179.9,179.78,0.12549]
[1734922614054,43.45394618,179.86,179.78,0.12549]
[1734922614235,43.45394618,179.88,179.79,43.45394618]
[1734922615443,43.45394618,179.86,179.79,43.45394618]
[1734922615844,43.45394618,179.84,179.77,45.06284618]
[1734922616155,43.45394618,179.87,179.79,43.45394618]
[1734922616337,6.5753,179.9,179.81,43.45394618]
[1734922616544,43.45394618,179.88,179.81,43.45394618]
[1734922617353,43.45394618,179.87,179.79,43.45394618]
[1734922622977,43.45394618,179.89,179.81,43.45394618]
[1734922623650,43.45394618,179.87,179.79,20.0]
[1734922623849,43.45394618,179.87,179.79,63.45394618]
[1734922624770,43.45394618,179.87,179.8,0.12549]
[1734922624943,43.45394618,179.89,179.81,43.45394618]
[1734922626278,26.74657033,179.9,179.82,26.74657033]
[1734922627353,26.74657033,179.9,179.83,0.12549]
[1734922627567,27.44603513,179.92,179.84,26.74657033]
[1734922628474,27.44603513,179.92,179.85,6.60589]
[1734922628681,0.6994648,179.92,179.86,26.74657033]
[1734922630677,0.6994648,179.92,179.88,26.74657033]
[1734922631269,0.6994648,179.92,179.91,26.74657033]
[1734922632050,0.6994648,179.92,179.9,26.74657033]
[1734922633879,0.6994648,179.92,179.89,26.74657033]
[1734922634076,0.6994648,179.92,179.85,33.22697033]
[1734922634077,27.44603513,179.92,179.85,33.22697033]
[1734922634381,27.44603513,179.92,179.85,6.4804]
[1734922634382,26.74657033,179.91,179.85,6.4804]
[1734922635495,26.74657033,179.89,179.83,1.5111]
[1734922635779,26.74657033,179.86,179.8,6.6416]
[1734922635982,26.74657033,179.85,179.78,26.74657033]
[1734922636188,26.74657033,179.87,179.79,26.74657033]
[1734922636495,26.74657033,179.87,179.8,26.74657033]
[1734922637272,26.74657033,179.88,179.8,26.74657033]
[1734922637477,26.74657033,179.89,179.81,26.74657033]
[1734922637686,26.74657033,179.9,179.82,26.74657033]
[1734922638251,26.74657033,179.88,179.8,26.74657033]
[1734922638682,26.74657033,179.89,179.81,26.74657033]
[1734922639699,26.74657033,179.91,179.83,26.74657033]
[1734922640178,26.74657033,179.89,179.81,26.74657033]
[1734922641079,26.74657033,179.87,179.79,26.74657033]
[1734922641450,0.6994648,179.92,179.79,26.74657033]
[1734922641671,26.74657033,179.88,179.79,26.74657033]
[1734922644073,20.6994648,179.92,179.81,26.74657033]
[1734922644281,26.74657033,179.89,179.81,26.74657033]
[1734922645351,26.74657033,179.89,179.77,2.34519708]
[1734922645352,26.74657033,179.89,179.79,26.74657033]
[1734922645556,26.74657033,179.86,179.79,26.74657033]
[1734922646177,26.74657033,179.88,179.79,26.74657033]
[1734922646754,26.74657033,179.86,179.79,26.74657033]
[1734922647175,26.74657033,179.84,179.77,26.74657033]
[1734922647502,26.74657033,179.82,179.73,28.30227033]
[1734922647676,26.74657033,179.8,179.73,28.30227033]
[1734922648285,6.0743,179.86,179.73,28.30227033]
[1734922648286,26.74657033,179.84,179.75,26.74657033]
[1734922649054,26.74657033,179.82,179.73,28.30227033]
[1734922649251,26.74657033,179.8,179.73,28.30227033]
[1734922649457,26.74657033,179.82,179.73,28.30227033]
[1734922650990,26.74657033,179.8,179.72,6.5238]
[1734922651294,26.74657033,179.74,179.67,32.81037033]
[1734922651874,26.74657033,179.74,179.67,6.0638]
[1734922655011,26.74657033,179.76,179.68,26.74657033]
[1734922655704,26.74657033,179.74,179.67,6.0638]
[1734922656092,26.74657033,179.74,179.66,26.74657033]
[1734922656415,26.74657033,179.72,179.64,28.37507033]
[1734922658022,26.74657033,179.74,179.66,26.74657033]
[1734922659181,26.74657033,179.72,179.64,28.37507033]
[1734922659409,1.5584,179.79,179.64,28.37507033]
[1734922659410,26.74657033,179.74,179.66,26.74657033]
[1734922659717,26.74657033,179.76,179.68,26.74657033]
[1734922660013,26.74657033,179.78,179.7,26.74657033]
[1734922662791,26.74657033,179.81,179.73,26.74657033]
[1734922663091,26.74657033,179.82,179.74,26.74657033]
[1734922663710,26.74657033,179.8,179.73,28.31107033]
[1734922664003,26.74657033,179.8,179.71,6.3115]
[1734922664185,26.74657033,179.8,179.71,33.05807033]
[1734922664601,1.6512,179.84,179.71,33.05807033]
[1734922664602,26.74657033,179.78,179.71,33.05807033]
[1734922665807,26.74657033,179.8,179.72,26.74657033]
[1734922666595,26.74657033,179.81,179.73,26.74657033]
[1734922666804,26.74657033,179.83,179.75,26.74657033]
[1734922667795,26.74657033,179.85,179.77,26.74657033]
[1734922668589,26.74657033,179.85,179.79,26.74657033]
[1734922669194,26.74657033,179.89,179.8,34.20043442]
[1734922669413,26.74657033,179.89,179.81,26.74657033]
[1734922671015,26.74657033,179.89,179.82,0.12549]
[1734922671314,0.6994648,179.92,179.85,26.74657033]
[1734922671510,0.6994648,179.92,179.85,28.36507033]
[1734922671819,0.6994648,179.92,179.87,26.74657033]
[1734922672120,0.6994648,179.92,179.88,0.12549]
[1734922672304,0.6994648,179.92,179.89,33.31017033]
[1734922672687,0.6994648,179.92,179.9,26.74657033]
[1734922673390,0.6994648,179.92,179.89,33.31017033]
[1734922674392,0.6994648,179.92,179.9,26.74657033]
[1734922675215,0.6994648,179.92,179.89,6.5636]
[1734922675794,0.6994648,179.92,179.9,26.74657033]
[1734922676395,2.2789648,180.1,179.94,20.12549]
[1734922676616,26.74657033,180.07,179.99,26.74657033]
[1734922677805,26.74657033,180.08,179.99,26.74657033]
[1734922678006,26.74657033,180.08,180.0,0.12549]
[1734922678401,26.74657033,180.08,179.99,32.99367033]
[1734922680208,43.37919542,180.07,179.99,49.62629542]
[1734922680812,43.37919542,180.07,180.0,0.12549]
[1734922681004,43.37919542,180.07,180.0,1.5821]
[1734922681727,43.37919542,180.09,180.0,1.5821]
[1734922682222,0.6994648,180.1,180.01,43.37919542]
[1734922682527,44.07866022,180.1,180.02,0.12549]
[1734922682824,44.07866022,180.1,180.01,43.37919542]
[1734922684715,43.37919542,180.08,180.0,1.5821]
[1734922684917,43.37919542,180.06,180.0,1.5821]
[1734922685128,20.0,180.08,179.97,43.37919542]
[1734922685304,43.37919542,180.04,179.97,43.37919542]
[1734922685624,43.37919542,180.06,179.97,43.37919542]
[1734922687024,43.37919542,180.04,179.97,43.37919542]
[1734922687426,43.37919542,180.02,179.95,44.89889542]
[1734922689333,43.37919542,180.04,179.95,44.89889542]
[1734922690332,43.37919542,180.04,179.97,43.37919542]
[1734922692431,43.37919542,180.06,179.99,43.37919542]
[1734922692636,0.6994648,180.1,180.0,1.6024]
[1734922692637,43.37919542,180.08,180.0,1.6024]
[1734922695335,43.37919542,180.08,180.01,43.37919542]
[1734922695539,43.37919542,180.06,180.0,1.6024]
[1734922695740,43.37919542,180.06,179.99,43.37919542]
[1734922696134,43.37919542,180.08,179.99,43.37919542]
[1734922696847,43.37919542,180.06,179.97,43.37919542]
[1734922697142,43.37919542,180.04,179.97,43.37919542]
[1734922699143,43.37919542,179.99,179.94,6.1864]
[1734922699323,6.3703,180.07,179.91,67.26546442]
[1734922699324,43.37919542,179.97,179.91,1.6522]
[1734922699845,43.37919542,179.98,179.91,45.03139542]
[1734922700027,43.37919542,179.99,179.92,43.37919542]
[1734922700225,26.71666744,180.01,179.93,26.71666744]
[1734922700623,26.71666744,180.01,179.94,26.71666744]
[1734922701237,26.71666744,180.0,179.93,26.71666744]
[1734922701846,26.71666744,179.99,179.91,28.36886744]
[1734922702041,26.71666744,179.98,179.91,28.36886744]
[1734922702242,26.71666744,179.98,179.91,1.6522]
[1734922702954,1.6378,180.04,179.9,26.71666744]
[1734922702955,26.71666744,179.97,179.9,26.71666744]
[1734922705049,26.71666744,179.99,179.92,26.71666744]
[1734922705640,26.71666744,179.98,179.91,26.71666744]
[1734922706245,26.71666744,179.97,179.89,32.75016744]
[1734922711142,26.71666744,179.97,179.89,26.71666744]
[1734922711343,26.71666744,179.95,179.87,28.28376744]
[1734922712026,26.71666744,179.93,179.85,32.79136744]
[1734922714946,26.71666744,179.97,179.87,26.71666744]
[1734922715149,26.71666744,179.97,179.89,26.71666744]
[1734922716155,26.71666744,179.95,179.87,26.71666744]
[1734922720742,26.71666744,179.97,179.89,26.71666744]
[1734922722447,26.71666744,179.99,179.91,26.71666744]
[1734922723852,26.71666744,179.98,179.89,26.71666744]
[1734922724053,26.71666744,179.94,179.85,32.79136744]
[1734922724365,26.71666744,179.94,179.87,26.71666744]
[1734922724543,26.71666744,179.96,179.87,26.71666744]
[1734922724743,26.71666744,179.96,179.89,26.71666744]
[1734922724950,26.71666744,179.98,179.89,26.71666744]
[1734922726364,26.71666744,179.96,179.89,26.71666744]
[1734922726658,26.71666744,179.96,179.87,26.71666744]
[1734922727461,26.71666744,179.94,179.85,32.79136744]
[1734922727663,26.71666744,180.0,179.85,6.0747]
[1734922727664,26.71666744,179.9,179.85,6.0747]
[1734922728052,26.71666744,179.88,179.83,1.5]
[1734922731254,26.71666744,179.88,179.81,32.77606744]
[1734922733355,26.71666744,179.9,179.81,32.77606744]
[1734922733852,26.71666744,179.88,179.81,32.77606744]
[1734922738288,16.71797575,179.89,179.81,22.77737575]
[1734922740070,16.71797575,179.91,179.83,16.71797575]
[1734922740373,1.5451,179.95,179.83,16.71797575]
[1734922740576,16.71797575,179.92,179.83,16.71797575]
[1734922740975,16.71797575,179.92,179.81,6.89334052]
[1734922740976,16.71797575,179.88,179.81,6.0594]
[1734922741182,16.71797575,179.84,179.78,1.6217]
[1734922741552,16.71797575,179.81,179.76,6.5501]
[1734922741868,16.71797575,179.8,179.73,1.5845]
[1734922742288,6.4625,179.89,179.76,26.77000179]
[1734922742289,26.77000179,179.84,179.76,26.77000179]
[1734922742452,6.4625,179.89,179.77,26.77000179]
[1734922742453,26.77000179,179.85,179.77,26.77000179]
[1734922742648,26.77000179,179.84,179.77,26.77000179]
[1734922742854,26.77000179,179.85,179.77,26.77000179]
[1734922743852,26.77000179,179.87,179.79,26.77000179]
[1734922744058,26.77000179,179.87,179.8,26.77000179]
[1734922746281,26.77000179,179.87,179.8,33.11080179]
[1734922746767,26.77000179,179.91,179.84,26.77000179]
[1734922746965,6.5752,179.99,179.87,26.77000179]
[1734922747163,26.77000179,179.95,179.87,26.77000179]
[1734922747359,26.77000179,179.93,179.86,26.77000179]
[1734922747787,26.77000179,179.94,179.86,26.77000179]
[1734922748783,26.77000179,179.94,179.87,26.77000179]
[1734922750598,26.77000179,179.94,179.88,6.044]
[1734922751167,26.77000179,179.92,179.88,6.044]
[1734922751387,26.77000179,179.91,179.84,6.0585]
[1734922752285,26.77000179,179.91,179.85,26.77000179]
[1734922754194,26.77000179,179.95,179.87,26.77000179]
[1734922754399,26.77000179,179.95,179.89,28.34820179]
[1734922754565,26.77000179,179.97,179.89,28.34820179]
[1734922755698,3.78247044,180.05,179.91,26.77000179]
[1734922755877,26.77000179,179.99,179.91,33.09570179]
[1734922756077,26.77000179,179.97,179.91,6.3257]
[1734922756288,26.77000179,179.96,179.91,6.3257]
[1734922756594,26.77000179,179.94,179.89,1.5782]
[1734922757194,26.77000179,179.93,179.89,1.5782]
[1734922759787,26.77000179,179.91,179.87,6.3257]
[1734922765995,26.77000179,179.91,179.84,1.5078]
[1734922766186,26.77000179,179.89,179.84,1.5078]
[1734922768874,26.77000179,179.87,179.82,6.3105]
[1734922769194,26.77000179,179.83,179.78,6.2424]
[1734922770683,26.77000179,179.79,179.75,1.5474]
[1734922772472,26.77000179,179.77,179.72,1.5621]
[1734922772678,26.77000179,179.77,179.7,6.1449]
[1734922773174,26.77000179,179.75,179.7,6.1449]
[1734922773375,26.77000179,179.74,179.7,6.1449]
[1734922773583,26.77000179,179.73,179.68,1.5621]
[1734922773799,26.77000179,179.72,179.68,1.5621]
[1734922773997,26.77000179,179.71,179.65,6.1449]
[1734922774204,26.77000179,179.7,179.65,6.1449]
[1734922774409,26.77000179,179.72,179.65,32.91490179]
[1734922774610,26.77000179,179.74,179.67,26.77000179]
[1734922775086,26.77000179,179.75,179.68,26.77000179]
[1734922775296,26.77000179,179.78,179.7,26.77000179]
[1734922775892,26.77000179,179.81,179.73,28.32540179]
[1734922776079,1.5731,179.87,179.74,32.96350179]
[1734922776080,26.77000179,179.82,179.74,32.96350179]
[1734922779619,26.77000179,179.91,179.74,32.96350179]
[1734922779620,26.77000179,179.84,179.76,26.77000179]
[1734922781186,26.77000179,179.84,179.77,0.12549]
[1734922782817,26.77000179,179.85,179.77,26.77000179]
[1734922783414,26.77000179,179.82,179.74,32.96350179]
[1734922783786,26.77000179,179.82,179.75,0.12549]
[1734922784501,26.77000179,179.83,179.75,26.89549179]
[1734922785191,26.77000179,179.91,179.74,32.96350179]
[1734922785192,26.77000179,179.82,179.74,32.96350179]
[1734922789028,26.77000179,179.85,179.77,26.77000179]
[1734922789499,26.77000179,179.84,179.76,26.77000179]
[1734922789705,26.77000179,179.83,179.76,26.77000179]
[1734922789918,26.77000179,179.83,179.75,0.12549]
[1734922789919,26.77000179,179.83,179.75,26.89549179]
[1734922792032,26.77000179,179.81,179.75,26.77000179]